bitfinex/quotes_ETHUSD_20241217
["timestamp","ask_amount","ask_price","bid_price","bid_amount"]
[1734464127516,0.26520018,3938.3,3938.2,0.1]
[1734464128629,3.61446018,3938.3,3938.2,0.1]
[1734464128835,5.36936893,3938.3,3938.2,0.1]
[1734464129138,8.55380457,3938.3,3938.2,0.1]
[1734464129326,8.36936893,3938.3,3938.2,0.1]
[1734464129528,8.91936893,3938.3,3938.2,0.1]
[1734464129717,6.34939,3938.1,3938.0,0.1]
[1734464130048,6.08936,3938.0,3937.9,0.09673794]
[1734464130338,14.56391479,3938.0,3937.9,0.09673794]
[1734464130755,10.84800469,3938.0,3937.9,0.09673794]
[1734464131511,14.56135557,3938.0,3937.9,0.09673794]
[1734464131713,10.84800469,3938.0,3937.9,0.09673794]
[1734464131979,12.98333588,3938.0,3937.9,0.09673794]
[1734464132266,13.02839344,3938.0,3937.9,0.09673794]
[1734464132592,13.02839344,3938.0,3937.9,7.94e-06]
[1734464132715,0.771,3936.7,3935.9,0.8023]
[1734464132914,1.06076118,3936.4,3935.9,0.8023]
[1734464133555,0.04449375,3936.3,3935.9,0.8023]
[1734464133917,1.06076118,3936.5,3935.9,0.8023]
[1734464134153,0.04449375,3936.2,3935.9,0.8023]
[1734464134390,1.06076118,3936.5,3935.9,0.8023]
[1734464134652,0.04449375,3936.4,3935.9,0.8023]
[1734464135925,1.06076118,3936.6,3935.9,0.8023]
[1734464136133,0.04449375,3936.3,3935.9,0.8023]
[1734464136339,1.06076118,3936.6,3935.9,0.8023]
[1734464136540,0.04301063,3936.2,3935.9,0.8023]
[1734464136709,1.06076118,3936.6,3935.9,0.8023]
[1734464136927,1.06076118,3936.7,3935.9,0.8023]
[1734464137123,0.04301063,3936.5,3935.9,0.8023]
[1734464137331,1.86921671,3936.7,3935.9,0.8023]
[1734464137549,0.04301063,3936.4,3935.9,0.8023]
[1734464137767,1.86921671,3936.7,3935.9,0.8023]
[1734464138239,0.04301063,3936.6,3935.9,0.8023]
[1734464138815,1.06076118,3936.9,3935.9,0.8023]
[1734464139147,0.04275816,3936.5,3935.9,0.8023]
[1734464139348,1.06076118,3936.9,3935.9,0.8023]
[1734464139557,0.04275816,3936.4,3935.9,0.8023]
[1734464139716,1.06076118,3936.9,3935.9,0.8023]
[1734464140224,0.04275816,3936.8,3935.9,0.8023]
[1734464140848,0.04275816,3936.8,3935.3,2.17021274]
[1734464140849,0.04275816,3936.8,3936.0,0.02540403]
[1734464141176,1.06076118,3937.1,3936.1,0.8023]
[1734464141457,1.06076118,3937.0,3936.1,0.8023]
[1734464141750,0.771,3936.8,3936.1,0.8023]
[1734464142142,0.76792528,3936.8,3935.7,0.8023]
[1734464142450,2.54026,3936.6,3935.7,0.8023]
[1734464142673,3.60102118,3936.6,3935.7,0.8023]
[1734464142874,0.04249337,3936.5,3935.7,0.8023]
[1734464143218,1.10325455,3936.5,3935.7,0.8023]
[1734464143426,0.04249337,3936.5,3935.7,0.8023]
[1734464144075,0.04249337,3936.5,3935.6,3.48659395]
[1734464144076,6.09084,3935.7,3935.6,3.48659395]
[1734464144280,7.84102562,3935.7,3935.6,2.21614395]
[1734464144440,2.54116,3935.2,3935.1,0.1631037]
[1734464144646,3.55,3935.9,3935.7,4.30673743]
[1734464144839,0.04073936,3935.2,3935.1,0.1631037]
[1734464145040,2.94121274,3935.2,3935.1,0.1631037]
[1734464145332,2.98090394,3935.2,3935.1,0.1631037]
[1734464145528,2.54174,3934.3,3934.2,0.1]
[1734464145843,5.73712674,3934.3,3934.2,0.1]
[1734464146026,5.77583959,3934.3,3934.2,0.1]
[1734464146975,3.23409959,3934.3,3934.2,0.1]
[1734464147329,5.77583959,3934.3,3934.2,0.1]
[1734464150568,31.14623959,3934.3,3934.2,0.1]
[1734464155270,31.14623959,3934.3,3934.2,0.00458727]
[1734464155986,31.24786759,3934.3,3934.2,0.00458727]
[1734464156193,31.37408075,3934.3,3934.2,0.00458727]
[1734464156397,31.37408075,3934.3,3934.2,7.27e-06]
[1734464156561,34.37408075,3934.3,3934.2,7.27e-06]
[1734464156758,3.33827,3933.8,3933.5,0.1]
[1734464157054,3.96380661,3933.8,3933.5,0.1]
[1734464157802,9.13401935,3933.8,3933.5,0.1]
[1734464158020,9.13401935,3933.8,3933.7,1e-05]
[1734464158177,9.38401935,3933.8,3933.7,1e-05]
[1734464158504,6.3384,3933.6,3933.5,1e-05]
[1734464158914,3.33924,3932.3,3932.2,0.1]
[1734464159440,3.37524061,3932.3,3932.2,0.1]
[1734464160142,0.83220061,3932.3,3932.2,0.1]
[1734464160281,0.03600061,3932.3,3932.2,0.8532]
[1734464160684,2.54253,3933.1,3932.2,0.8532]
[1734464160949,0.7962,3933.3,3932.2,0.8532]
[1734464160950,0.333873,3933.0,3932.2,0.8532]
[1734464161240,0.03556976,3933.0,3932.2,0.8532]
[1734464161545,0.03556976,3933.0,3932.2,0.1]
[1734464161695,2.54265,3932.9,3932.2,0.1]
[1734464161892,0.8202,3932.3,3932.2,0.1]
[1734464162138,3.36324,3932.3,3932.2,0.1]
[1734464162295,3.98962643,3932.3,3932.2,0.1]
[1734464163552,6.15983917,3932.3,3932.2,0.1]
[1734464164353,9.15983917,3932.3,3932.2,1e-05]
[1734464164494,9.15983917,3932.3,3931.2,0.1631037]
[1734464164495,3.36388,3931.3,3931.2,0.1631037]
[1734464165007,3.39901887,3931.3,3931.2,0.1631037]
[1734464165340,3.73892076,3931.3,3931.2,0.1631037]
[1734464166746,3.73892076,3931.3,3931.2,0.00761566]
[1734464168039,6.73892076,3931.3,3931.2,0.00761566]
[1734464169371,6.73892076,3931.3,3929.0,2.17021274]
[1734464169372,3.0,3930.0,3927.3,0.7878]
[1734464169501,2.54497,3929.4,3927.3,0.7878]
[1734464169700,2.17021274,3929.8,3927.3,0.7878]
[1734464169701,2.54513,3929.1,3927.3,0.7878]
[1734464170116,3.39930103,3929.0,3927.3,0.7878]
[1734464170296,2.54525,3928.9,3927.3,0.7878]
[1734464170751,2.57878894,3928.8,3927.3,0.7878]
[1734464171057,0.03347894,3928.8,3927.4,0.31211164]
[1734464171265,2.57878894,3928.8,3927.4,0.31211164]
[1734464171756,0.03347894,3928.8,3927.5,0.55]
[1734464171961,0.03347894,3928.8,3927.7,0.55]
[1734464172720,0.03347894,3928.8,3927.9,0.55]
[1734464172937,0.03347894,3928.8,3928.3,2.68509556]
[1734464173145,0.8202,3930.4,3928.8,0.7878]
[1734464173354,0.8202,3930.4,3928.9,1.3378]
[1734464173550,0.03013918,3930.3,3929.1,0.55]
[1734464174478,0.03013918,3930.3,3928.7,2.68509556]
[1734464174479,0.12458384,3930.1,3929.2,0.7878]
[1734464174773,2.54403,3930.8,3929.3,0.55]
[1734464175055,0.03106727,3930.7,3929.5,0.55]
[1734464175492,2.54394,3930.9,3929.5,0.55]
[1734464175609,0.03106727,3930.6,3929.5,0.55]
[1734464175805,0.33990189,3931.3,3929.7,0.55]
[1734464176145,2.54389,3931.0,3929.9,0.55]
[1734464176310,0.1278647,3930.7,3929.9,0.55]
[1734464176842,0.03131001,3930.6,3929.9,0.55]
[1734464178937,2.54439,3930.3,3929.9,0.55]
[1734464179142,2.54433,3930.4,3929.9,0.55]
[1734464179467,0.2889657,3930.3,3929.9,0.55]
[1734464179749,0.0314017,3930.3,3929.9,0.55]
[1734464179946,0.0314017,3930.3,3929.9,10.71]
[1734464180448,0.03133698,3930.2,3929.9,10.71]
[1734464180816,1.017121,3930.4,3929.9,10.71]
[1734464181017,0.03133698,3930.3,3929.9,10.71]
[1734464183149,1.017115,3930.5,3929.9,10.71]
[1734464183349,3.561315,3930.5,3929.9,10.71]
[1734464183670,0.03128844,3930.4,3929.9,10.71]
[1734464186827,0.03128844,3930.4,3929.9,11.85978]
[1734464187028,2.54376,3931.2,3930.1,0.55]
[1734464187233,1.017009,3930.9,3930.3,0.55]
[1734464187641,0.03118914,3930.8,3930.3,0.55]
[1734464187840,2.54388,3931.0,3930.3,0.55]
[1734464188046,0.03115139,3930.7,3930.3,0.55]
[1734464188242,2.54388,3931.0,3930.3,0.55]
[1734464188641,0.03115139,3930.9,3930.3,0.55]
[1734464190283,1.016971,3931.1,3930.3,0.55]
[1734464190467,0.03106332,3930.8,3930.3,0.55]
[1734464190677,1.016971,3931.1,3930.1,0.7699]
[1734464190974,0.03106332,3930.7,3930.5,0.7699]
[1734464191179,2.54355,3931.6,3930.6,0.55]
[1734464191180,1.016884,3931.5,3930.6,0.55]
[1734464191589,0.0314786,3931.4,3930.6,0.55]
[1734464193761,2.5750986,3931.4,3930.6,0.55]
[1734464193963,0.33449986,3931.3,3931.1,20.8]
[1734464194462,0.03166734,3931.2,3931.1,20.8]
[1734464194878,2.87817986,3931.3,3931.1,20.8]
[1734464195080,0.03061805,3931.2,3931.1,20.8]
[1734464195663,2.87817986,3931.3,3931.1,20.8]
[1734464195877,0.33449986,3931.3,3931.1,20.8]
[1734464196087,0.03061805,3931.2,3931.1,20.8]
[1734464196510,0.33449986,3931.3,3931.1,20.8]
[1734464196677,0.03061805,3931.2,3931.1,20.8]
[1734464197503,0.33449986,3931.3,3931.1,20.8]
[1734464197661,2.54375,3931.2,3931.1,20.8]
[1734464197861,2.57436805,3931.2,3931.1,20.8]
[1734464198100,0.03061805,3931.2,3931.1,20.8]
[1734464198403,0.03061805,3931.2,3931.1,21.5838]
[1734464198563,3.59859932,3931.7,3931.1,21.5838]
[1734464198763,1.89291821,3931.6,3931.1,21.5838]
[1734464199116,1.92357939,3931.6,3931.1,21.5838]
[1734464199284,0.03066118,3931.6,3931.1,21.5838]
[1734464199693,1.05517932,3931.9,3931.2,0.55]
[1734464199896,0.03090921,3931.5,3931.2,0.55]
[1734464200097,1.05517932,3932.1,3931.2,0.55]
[1734464200259,0.03090921,3931.4,3931.2,0.55]
[1734464200457,2.54349,3931.6,3931.1,21.5838]
[1734464200796,0.35986693,3931.5,3931.1,21.5838]
[1734464201095,0.39129366,3931.5,3931.1,21.5838]
[1734464202314,0.03142673,3931.5,3931.2,1.3872]
[1734464202974,1.05517932,3932.0,3931.2,1.3872]
[1734464203391,0.0313836,3931.9,3931.2,1.3872]
[1734464203863,1.08656292,3931.9,3931.2,1.3872]
[1734464204292,0.0313836,3931.9,3931.2,1.3872]
[1734464204497,1.08656292,3931.9,3931.2,1.3872]
[1734464204668,0.0313836,3931.9,3931.2,1.3872]
[1734464204866,1.08348809,3931.9,3931.2,1.3872]
[1734464207392,1.05517932,3931.8,3931.2,1.3872]
[1734464207706,0.03105237,3931.7,3931.2,1.3872]
[1734464208804,1.05517932,3931.9,3931.2,1.3872]
[1734464209005,0.02999247,3931.6,3931.2,1.3872]
[1734464209198,1.05517932,3931.9,3931.2,1.3872]
[1734464209378,0.02999247,3931.5,3931.2,1.3872]
[1734464209583,1.05517932,3931.8,3931.2,1.3872]
[1734464210013,0.02999247,3931.7,3931.2,1.3872]
[1734464210211,1.05517932,3931.5,3931.1,20.8]
[1734464210419,1.05517932,3931.4,3931.1,20.8]
[1734464210714,1.05517932,3931.2,3931.1,20.8]
[1734464211084,0.02964727,3931.2,3931.1,20.8]
[1734464211275,0.02964727,3931.2,3931.1,21.587]
[1734464211472,1.05517932,3931.4,3931.1,21.587]
[1734464211807,0.02968502,3931.2,3931.1,21.587]
[1734464212010,1.05517932,3931.6,3931.1,21.587]
[1734464212185,0.02888279,3931.2,3931.1,21.587]
[1734464212505,1.45301593,3931.6,3931.1,21.587]
[1734464212808,1.05517932,3931.5,3931.1,21.587]
[1734464212982,1.08406211,3931.5,3931.1,20.8]
[1734464213181,1.05517932,3931.3,3931.1,20.8]
[1734464213406,1.61600909,3931.3,3931.1,20.8]
[1734464213609,0.02792003,3931.2,3931.1,20.8]
[1734464213983,1.61600909,3931.3,3931.1,20.8]
[1734464214195,0.02792003,3931.2,3931.1,20.8]
[1734464214886,1.05517932,3931.5,3931.1,20.8]
[1734464215089,1.45301593,3931.6,3931.1,20.8]
[1734464215278,0.02792003,3931.4,3931.2,0.55]
[1734464215484,0.02780676,3931.5,3931.3,1.337]
[1734464215703,1.05517932,3931.9,3931.3,1.337]
[1734464215903,0.02787148,3931.4,3931.3,1.337]
[1734464216107,1.05517932,3931.8,3931.3,1.337]
[1734464216273,2.11035864,3932.2,3931.4,0.57543495]
[1734464216274,1.05517932,3932.2,3931.4,0.57543495]
[1734464216476,1.05517932,3932.1,3931.6,0.55]
[1734464216716,1.05517932,3932.3,3931.6,0.55]
[1734464217121,1.05517932,3932.3,3931.5,0.787]
[1734464217419,1.05517932,3932.3,3931.8,0.55]
[1734464217619,1.05517932,3932.2,3931.8,0.55]
[1734464218805,1.05517932,3932.1,3931.8,0.55]
[1734464219046,1.08128796,3932.1,3931.8,0.55]
[1734464220859,1.05517932,3932.0,3931.8,0.55]
[1734464221061,1.08128796,3932.1,3931.8,0.55]
[1734464221209,1.08128796,3932.0,3931.8,0.55]
[1734464221617,0.02610864,3932.0,3931.8,0.55]
[1734464222243,0.02610864,3932.0,3931.2,0.8128]
[1734464222244,3.59848932,3931.9,3931.2,0.8128]
[1734464222445,1.0613841,3931.6,3931.2,0.8128]
[1734464222613,1.0613841,3931.5,3931.2,0.8128]
[1734464223403,1.0613841,3931.6,3931.1,20.8]
[1734464223695,1.0613841,3931.6,3931.3,0.55]
[1734464224801,1.0613841,3931.7,3931.3,0.55]
[1734464225304,1.0613841,3931.6,3931.3,0.55]
[1734464225674,1.0613841,3931.7,3931.3,0.55]
[1734464225872,0.02610864,3931.8,3931.3,0.55]
[1734464226084,1.08749274,3932.0,3931.5,0.55]
[1734464226085,0.02610864,3932.0,3931.5,0.55]
[1734464226293,0.02610864,3932.0,3931.1,20.8]
[1734464226294,0.02610864,3932.0,3931.7,0.55]
[1734464226960,0.02600102,3931.9,3931.8,1.38823188]
[1734464227161,0.02600102,3931.9,3931.8,3.56742039]
[1734464227356,0.02610864,3932.0,3931.9,1.3628]
[1734464228679,0.02610864,3932.0,3931.9,1.47373242]
[1734464229084,1.0613841,3933.3,3931.9,3.66093242]
[1734464229406,1.0613841,3933.3,3932.5,1.3628]
[1734464229604,1.0613841,3933.5,3932.5,1.3628]
[1734464229803,0.02503193,3933.2,3932.6,0.0254247]
[1734464230009,1.58276898,3933.7,3932.6,0.0254247]
[1734464230010,0.02516136,3933.4,3932.6,0.0254247]
[1734464230164,1.0613841,3933.5,3932.8,2.72919063]
[1734464230367,1.016241,3933.8,3933.0,0.55]
[1734464230368,0.02516136,3933.3,3933.0,0.55]
[1734464230606,1.0613841,3934.0,3933.4,0.55]
[1734464230931,26.4317841,3934.3,3933.4,0.55]
[1734464231316,1.0613841,3934.2,3933.4,0.55]
[1734464231516,26.4317841,3934.3,3933.4,0.55]
[1734464231830,25.3704,3934.3,3933.4,0.55]
[1734464232193,25.3704,3934.3,3933.3,1.3628]
[1734464232388,25.3704,3934.3,3933.5,0.55]
[1734464232736,25.3704,3934.3,3933.9,0.8128]
[1734464232890,25.3704,3934.3,3934.0,0.55]
[1734464233417,0.02554938,3934.2,3934.0,0.55]
[1734464234613,25.3704,3934.3,3934.0,0.55]
[1734464234816,0.02576498,3934.1,3934.0,0.55]
[1734464235010,25.3704,3934.3,3934.0,0.55]
[1734464235217,0.02576498,3934.1,3934.0,0.55]
[1734464235431,25.3704,3934.3,3934.0,0.55]
[1734464235744,0.02576498,3934.1,3934.0,0.55]
[1734464235944,25.3704,3934.3,3934.0,0.55]
[1734464236117,0.02576498,3934.1,3934.0,0.55]
[1734464236311,25.3704,3934.3,3934.0,0.55]
[1734464236626,0.02576498,3934.1,3934.0,0.55]
[1734464237154,25.3704,3934.3,3934.0,0.55]
[1734464237305,0.02576498,3934.1,3934.0,0.55]
[1734464237644,25.3704,3934.3,3934.0,0.55]
[1734464237847,0.02576498,3934.1,3934.0,0.55]
[1734464238366,25.3704,3934.3,3934.0,0.55]
[1734464238551,0.02576498,3934.1,3934.0,0.55]
[1734464238719,25.3704,3934.3,3934.0,0.55]
[1734464238918,0.02576498,3934.1,3934.0,0.55]
[1734464239113,25.3704,3934.3,3934.0,0.55]
[1734464239363,0.02576498,3934.1,3934.0,0.55]
[1734464239566,25.3704,3934.3,3934.0,0.55]
[1734464239860,0.02576498,3934.1,3934.0,0.55]
[1734464240065,25.3704,3934.3,3934.0,0.55]
[1734464240234,0.02576498,3934.1,3934.0,0.55]
[1734464240560,0.02576498,3934.1,3933.7,3.55]
[1734464240867,25.3704,3934.3,3933.9,0.55]
[1734464241237,0.02576498,3934.2,3934.1,0.55]
[1734464241537,25.3704,3934.3,3934.1,0.55]
[1734464241881,0.02576498,3934.2,3934.1,0.55]
[1734464242262,25.3704,3934.3,3933.5,0.55]
[1734464242421,2.56280498,3934.2,3933.4,0.8128]
[1734464242624,2.56280498,3934.2,3933.1,0.8128]
[1734464243295,0.02576498,3934.2,3933.1,0.8128]
[1734464243859,0.02576498,3934.2,3933.2,0.57542129]
[1734464244659,0.02576498,3934.2,3933.2,0.57542061]
[1734464245259,0.02576498,3934.2,3933.2,0.55]
[1734464246706,0.02576498,3934.2,3933.2,2.72919063]
[1734464246853,0.02576498,3934.2,3933.4,0.55]
[1734464248599,0.02576498,3934.2,3933.6,0.55]
[1734464248800,0.02576498,3934.2,3933.6,2.72919063]
[1734464250782,0.02576498,3934.2,3933.6,0.55]
[1734464253326,0.02576498,3934.2,3933.8,0.55]
[1734464253515,0.02576498,3934.2,3934.0,0.55]
[1734464253679,25.3704,3934.3,3934.0,2.72919063]
[1734464255330,25.3704,3934.3,3933.1,0.8194]
[1734464255331,0.02510202,3934.2,3933.1,0.8194]
[1734464256604,0.02510202,3934.2,3933.2,0.55]
[1734464256809,25.3704,3934.3,3933.2,0.55]
[1734464257008,25.3704,3934.3,3933.4,0.55]
[1734464257589,0.02570021,3934.2,3933.4,0.55]
[1734464258321,25.3704,3934.3,3933.4,0.55]
[1734464258636,0.02570021,3934.1,3933.4,0.55]
[1734464258941,25.3704,3934.3,3933.4,0.55]
[1734464259108,25.3704,3934.3,3933.4,4.1034634]
[1734464259447,25.3704,3934.3,3933.4,1.1034634]
[1734464259633,0.02570021,3934.2,3933.4,1.1034634]
[1734464260142,25.3704,3934.3,3933.4,1.1034634]
[1734464260439,0.02570021,3934.1,3933.5,3.0]
[1734464260585,25.3704,3934.3,3933.6,1.1782654]
[1734464260807,0.02570021,3934.0,3933.6,1.1782654]
[1734464261055,25.3704,3934.3,3933.6,1.1782654]
[1734464261205,25.3704,3934.3,3933.6,0.55]
[1734464261743,0.02570021,3934.2,3933.6,0.55]
[1734464261956,0.02570021,3934.2,3933.1,3.8194]
[1734464261957,0.8269,3934.1,3933.1,3.0]
[1734464262250,0.85226611,3934.1,3933.2,0.11108683]
[1734464262454,0.85226611,3934.1,3933.1,3.0]
[1734464262654,0.85226611,3934.1,3933.1,4.61585906]
[1734464262810,0.85226611,3934.1,3933.2,0.11108271]
[1734464263011,0.8269,3934.1,3933.1,4.61585906]
[1734464263268,0.02536611,3934.0,3933.2,0.55]
[1734464263767,0.8269,3933.9,3933.2,0.55]
[1734464264138,0.8269,3933.9,3933.0,10.16]
[1734464264479,0.02536611,3933.8,3933.0,10.16]
[1734464265622,0.02536611,3933.8,3933.1,0.55]
[1734464269565,1.08675021,3933.8,3933.1,0.55]
[1734464270374,1.08675021,3933.8,3933.1,0.37961686]
[1734464270581,1.0613841,3933.7,3933.1,0.37961686]
[1734464270804,1.08652918,3933.7,3933.1,0.37961686]
[1734464271609,1.0613841,3933.6,3933.1,0.37961686]
[1734464272109,0.02514508,3933.5,3933.1,0.37961686]
[1734464272268,1.08652918,3933.5,3933.1,0.37961686]
[1734464273077,1.0613841,3933.4,3933.1,0.37961686]
[1734464273482,1.0613841,3933.5,3933.1,0.37961686]
[1734464273683,2.54149,3934.7,3933.1,0.37961686]
[1734464273684,0.02514508,3933.3,3933.2,1.60396169]
[1734464273911,1.0613841,3933.9,3933.3,4.3559]
[1734464274112,1.0613841,3934.0,3933.5,0.55]
[1734464274277,1.0613841,3934.1,3933.4,2.17919063]
[1734464274689,1.0613841,3934.0,3933.4,2.17919063]
[1734464275009,1.0613841,3934.0,3933.5,0.45890523]
[1734464275174,1.0613841,3933.9,3933.3,1.3559]
[1734464275574,1.0613841,3933.8,3933.3,1.3559]
[1734464276386,1.0613841,3934.0,3933.3,1.3559]
[1734464276630,1.0613841,3933.9,3933.3,1.3559]
[1734464276791,1.08652918,3933.9,3933.3,1.3559]
[1734464277515,1.08652918,3933.9,3933.3,2.52626077]
[1734464277678,0.02514508,3933.9,3933.3,2.52626077]
[1734464278713,1.08652918,3933.9,3933.3,2.52626077]
[1734464278917,0.02514508,3933.9,3933.3,2.52626077]
[1734464279538,1.08652918,3933.9,3933.3,2.52626077]
[1734464279705,0.02514508,3933.9,3933.4,0.25262608]
[1734464281879,1.08652918,3933.9,3933.4,3.25262608]
[1734464282347,1.08652918,3933.9,3933.4,3.0]
[1734464282498,1.58276898,3933.6,3933.0,10.16]
[1734464282684,1.85278524,3933.2,3933.0,10.16]
[1734464283019,1.06397528,3933.1,3933.0,10.16]
[1734464283228,1.08921742,3933.1,3933.0,10.16]
[1734464284810,0.02524214,3933.1,3933.0,10.16]
[1734464285016,1.06397528,3933.3,3933.0,12.5165]
[1734464285213,1.58276898,3933.5,3933.0,15.5165]
[1734464285214,9.19e-06,3933.1,3933.0,15.5165]
[1734464285466,1.06397528,3933.8,3933.1,3.55]
[1734464285768,1.06397528,3933.9,3933.3,0.55]
[1734464285911,1.06397528,3933.8,3933.1,3.0]
[1734464286108,1.06397528,3933.5,3933.0,10.16]
[1734464286343,1.06397528,3933.4,3933.0,10.16]
[1734464286537,1.85287528,3933.4,3933.0,10.16]
[1734464286737,1.06397528,3933.2,3933.0,10.16]
[1734464286913,0.7889,3933.1,3933.0,10.16]
[1734464287263,2.47787179,3933.1,3933.0,10.16]
[1734464287755,2.50169965,3933.1,3933.0,10.16]
[1734464288326,0.81272786,3933.1,3933.0,10.16]
[1734464289438,3.47025182,3933.1,3933.0,10.16]
[1734464290626,1.61777583,3933.1,3933.0,10.16]
[1734464290838,0.02382786,3933.1,3933.0,11.176]
[1734464291040,1.0624844,3933.3,3933.0,10.16]
[1734464291256,0.02262379,3933.1,3933.0,10.16]
[1734464291481,0.7889,3933.1,3933.0,10.16]
[1734464291681,0.81152379,3933.1,3933.0,10.16]
[1734464292457,0.02262379,3933.1,3933.0,10.16]
[1734464292855,1.8513844,3933.4,3933.0,10.16]
[1734464293378,0.02262379,3933.3,3933.0,10.16]
[1734464294669,1.08510819,3933.3,3933.0,10.16]
[1734464295979,0.02262379,3933.3,3933.0,10.16]
[1734464299757,1.0624844,3933.5,3933.1,0.81]
[1734464299958,0.02262379,3933.2,3933.1,0.81]
[1734464300170,1.0624844,3933.7,3933.1,0.81]
[1734464300500,0.02262379,3933.2,3933.1,0.81]
[1734464300659,1.0624844,3933.7,3933.1,0.81]
[1734464300881,1.0624844,3933.7,3933.1,2.0086]
[1734464301101,0.02262379,3933.6,3933.1,2.0086]
[1734464301477,1.08510819,3933.6,3933.1,2.0086]
[1734464303626,0.02262379,3933.6,3933.1,1.1986]
[1734464303927,0.02262379,3933.6,3933.3,0.81]
[1734464304202,1.0624844,3934.2,3933.5,0.81]
[1734464304508,25.3704,3934.3,3934.1,2.17919063]
[1734464304707,25.3704,3934.3,3934.2,0.81]
[1734464305901,25.3704,3934.3,3933.7,2.17919063]
[1734464306108,26.1832,3934.3,3933.5,0.81]
[1734464306304,27.2456844,3934.3,3933.5,0.81]
[1734464306504,26.1832,3934.3,3933.5,0.81]
[1734464306999,27.2456844,3934.3,3933.5,2.17846246]
[1734464307365,26.1832,3934.3,3933.5,2.17846246]
[1734464307762,27.2456844,3934.3,3933.5,2.17846246]
[1734464308800,1.0624844,3934.2,3933.5,2.17846246]
[1734464309006,26.1832,3934.3,3933.5,2.17846246]
[1734464309007,27.2456844,3934.3,3933.5,2.17846246]
[1734464309162,25.3704,3934.3,3933.7,5.17919063]
[1734464309363,25.3704,3934.3,3933.8,0.55]
[1734464309615,25.3704,3934.3,3933.9,0.81]
[1734464310713,25.3704,3934.3,3934.1,2.17919063]
[1734464313532,25.3704,3934.3,3934.2,0.7583]
[1734464313741,19.01605,3934.3,3934.2,4.6174041]
[1734464314090,17.74518,3934.3,3934.2,4.6174041]
[1734464314342,17.77543799,3934.3,3934.2,4.6174041]
[1734464314998,12.69195799,3934.3,3934.2,4.6174041]
[1734464315213,11.56472141,3934.3,3934.2,4.6174041]
[1734464315628,11.56472141,3934.3,3934.2,4.72727224]
[1734464316537,11.56472141,3934.3,3934.2,4.6174041]
[1734464317528,11.56472141,3934.3,3934.2,4.0674041]
[1734464317714,11.56472141,3934.3,3934.2,4.6174041]
[1734464318720,0.03025799,3934.3,3934.2,4.6174041]
[1734464319057,0.7744,3935.0,3934.2,4.6174041]
[1734464319241,0.7744,3935.0,3934.3,0.67965947]
[1734464319765,0.7744,3935.0,3934.2,0.55]
[1734464319920,0.7744,3935.0,3934.1,2.17919063]
[1734464321461,0.02390783,3934.9,3934.1,2.17919063]
[1734464324339,0.02390783,3934.9,3934.5,2.17919063]
[1734464324539,11.55840783,3934.9,3934.6,0.02541246]
[1734464324735,11.55840783,3934.9,3934.7,0.22046031]
[1734464325165,11.55840783,3934.9,3934.7,0.97876031]
[1734464325552,11.55840783,3934.9,3934.8,0.55]
[1734464328189,11.55840783,3934.9,3934.8,1.16657779]
[1734464328345,11.55840783,3934.9,3934.8,13.89524758]
[1734464328570,11.5345,3934.9,3934.8,13.89524758]
[1734464328812,11.5569943,3934.9,3934.8,13.89524758]
[1734464329101,11.55391936,3934.9,3934.8,13.78527779]
[1734464329967,1.46489593,3934.9,3934.8,14.03527779]
[1734464330168,1.21240163,3934.9,3934.8,14.14520051]
[1734464330443,0.8077,3936.4,3935.0,0.55]
[1734464330711,0.8077,3936.4,3936.0,2.17919063]
[1734464333615,1.0624844,3937.7,3936.0,2.17919063]
[1734464333773,1.59394797,3937.8,3935.4,8.91455958]
[1734464333774,0.83053361,3937.6,3936.4,2.17919063]
[1734464334193,0.83053361,3937.6,3936.1,0.02540061]
[1734464334415,0.8077,3937.6,3936.1,0.02540061]
[1734464334743,0.8077,3936.7,3935.6,0.8287]
[1734464334884,0.8077,3936.4,3934.9,3.8287]
[1734464335208,0.8077,3936.2,3934.9,0.8287]
[1734464335603,0.02264872,3936.1,3934.9,0.8287]
[1734464335815,0.8077,3936.2,3934.9,0.8287]
[1734464335976,0.02264872,3936.0,3934.9,0.8287]
[1734464336183,0.8077,3936.2,3935.0,0.55]
[1734464336420,0.02264872,3935.9,3935.0,0.55]
[1734464336727,0.2354906,3936.1,3935.0,0.55]
[1734464337021,0.8077,3936.2,3935.0,0.55]
[1734464337263,0.8077,3936.2,3935.3,3.55]
[1734464337376,1.2124,3936.4,3935.6,5.17919063]
[1734464337604,0.02236332,3936.3,3935.7,3.55]
[1734464337821,1.2124,3936.4,3935.7,3.55]
[1734464338027,1.2124,3936.4,3935.8,0.57291906]
[1734464339015,1.2124,3936.4,3935.7,0.55]
[1734464339239,1.2124,3936.4,3935.8,0.02540342]
[1734464340742,1.2124,3936.4,3935.7,3.55]
[1734464344580,1.2124,3936.4,3936.1,1.3702]
[1734464344781,1.2124,3936.4,3936.2,0.02540085]
[1734464345009,1.2124,3936.4,3936.3,0.35747915]
[1734464345912,1.2124,3936.4,3936.3,0.90747915]
[1734464346086,0.51850155,3936.4,3936.3,10.94274072]
[1734464346286,0.51850155,3936.4,3936.3,14.24388571]
[1734464346985,0.51850155,3936.4,3936.3,14.38425694]
[1734464347207,0.51850155,3936.4,3936.3,14.49378848]
[1734464347411,0.51850155,3936.4,3936.3,14.24378848]
[1734464347725,0.51850155,3936.4,3936.3,14.62277852]
[1734464347943,0.8182,3938.1,3936.4,12.34]
[1734464348227,0.8182,3938.1,3937.1,0.8202]
[1734464348380,1.0624844,3938.9,3937.2,0.57539213]
[1734464348381,0.8182,3938.8,3937.2,0.57539213]
[1734464348581,0.02262237,3938.0,3937.4,3.55]
[1734464348821,0.8182,3938.8,3937.4,3.55]
[1734464349038,0.02351577,3937.9,3937.4,3.55]
[1734464349211,0.8182,3938.8,3937.5,0.46158546]
[1734464349386,0.02351577,3937.8,3937.3,0.55]
[1734464349586,0.8182,3937.9,3937.3,0.55]